fUSD/lending_fUSD_20240125
["ID","MTS","AMOUNT","RATE_DAILY","PERIOD"]
[312678598,1706145043751,-150.0,0.00040375,2]
[312678599,1706145043761,-1000.0,0.000404,33]
[312678600,1706145043771,-1363.23270655,0.00040416,17]
[312678601,1706145043782,-233.38585,0.00040488,2]
[312678602,1706145043792,-150.0,0.00040641,3]
[312678603,1706145043801,-150.0,0.00040641,3]
[312678604,1706145043811,-27817.79997337,0.00040642,90]
[312678605,1706145043821,-165492.12440477,0.00040642,2]
[312678606,1706145043830,-16094.1026113,0.00040642,2]
[312678607,1706145043839,-12826.97236766,0.00040642,2]
[312678608,1706145043849,-1210.0,0.00040642,2]
[312678609,1706145043858,-2110.37399375,0.00040642,2]
[312678610,1706145043868,-332.93074713,0.00040642,2]
[312678611,1706145043877,-2875.98180632,0.00040642,2]
[312678612,1706145043887,-5771.7071198,0.00040642,2]
[312678613,1706145043897,-1454.33775154,0.00040642,2]
[312678614,1706145044143,-7051.85693084,0.00040642,2]
[312678615,1706145044163,-2614.89577375,0.00040642,2]
[312678616,1706145044173,-2347.65959539,0.00040642,2]
[312678617,1706145044183,-2555.40485242,0.00040642,2]
[312678618,1706145044192,-131426.98205836,0.00040642,2]
[312678619,1706145044201,-3107.77198084,0.00040642,2]
[312678620,1706145044210,-166.67515127,0.00040642,2]
[312678621,1706145044219,-9967.25024252,0.00040642,2]
[312678622,1706145044228,-3024.45777182,0.00040642,2]
[312678623,1706145044237,-3646.45423983,0.00040642,2]
[312678624,1706145044247,-14470.6735737,0.00040642,2]
[312678625,1706145044256,-1022.16786611,0.00040642,2]
[312678626,1706145044266,-46942.18117914,0.00040642,120]
[312678627,1706145044275,-1500.0,0.00040642,4]
[312678628,1706145044285,-100000.0,0.00040642,2]
[312678629,1706145044294,-4037.28327805,0.00040642,20]
[312678630,1706145044303,-1790.050849,0.00040642,30]
[312678631,1706145044313,-150.0,0.00040642,30]
[312678632,1706145044322,-9529.87570904,0.00040642,7]
[312678633,1706145044331,-10933.28072686,0.000407,2]
[312678634,1706145044341,-3105.3,0.000407,6]
[312678635,1706145044350,-170.0,0.00040733,2]
[312678636,1706145044359,-151.81793571,0.00040843,9]
[312678637,1706145044369,-3444.44324304,0.00041,4]
[312678638,1706145044378,-800.0,0.00041,2]
[312678639,1706145044387,-164.0,0.00041,14]
[312678640,1706145044396,-161.0,0.00041,14]
[312678641,1706145044406,-151.0,0.00041096,14]
[312678642,1706145044415,-516.58311,0.00041096,14]
[312678643,1706145044425,-516.58311,0.00041096,14]
[312678644,1706145044434,-151.0,0.00041096,14]
[312678645,1706145044444,-151.0,0.00041096,14]
[312678646,1706145044453,-151.0,0.00041096,14]
[312678647,1706145044462,-179.0,0.00041096,2]
[312678648,1706145044471,-151.0,0.00041096,14]
[312678649,1706145044481,-186.997498,0.00041096,14]
[312678650,1706145044492,-186.997498,0.00041096,14]
[312678651,1706145044501,-151.0,0.00041096,14]
[312678652,1706145044511,-151.0,0.00041096,14]
[312678653,1706145044520,-479.70925,0.00041096,14]
[312678654,1706145044531,-479.70925,0.00041096,14]
[312678655,1706145044541,-151.0,0.00041096,14]
[312678656,1706145044550,-151.0,0.00041096,14]
[312678657,1706145044559,-151.0,0.00041096,14]
[312678658,1706145044570,-151.0,0.00041096,14]
[312678659,1706145044579,-151.0,0.00041096,14]
[312678660,1706145044588,-641.146266,0.00041096,14]
[312678661,1706145044597,-641.146266,0.00041096,14]
[312678662,1706145044608,-153.85,0.00041096,2]
[312678663,1706145044617,-500.0,0.0004137,2]
[312678664,1706145044626,-150.0,0.00041384,2]
[312678665,1706145044635,-1489.53765312,0.0004163,5]
[312678666,1706145044645,-840.72075988,0.00042,120]
[312678667,1706145044654,-594.27441637,0.00042,4]
[312678668,1706145044663,-200.0,0.00042,2]
[312678669,1706145044672,-150.54,0.00042,2]
[312678670,1706145044681,-150.54,0.00042,2]
[312678671,1706145044690,-150.54,0.00042,2]
[312678672,1706145044699,-150.54,0.00042,2]
[312678673,1706145044709,-150.54,0.00042,2]
[312678674,1706145044721,-150.54,0.00042,2]
[312678675,1706145044730,-150.54,0.00042,2]
[312678676,1706145044739,-150.54,0.00042,2]
[312678677,1706145044749,-150.54,0.00042,2]
[312678678,1706145044758,-150.54,0.00042,2]
[312678679,1706145044767,-150.54,0.00042,2]
[312678680,1706145044776,-150.54,0.00042,2]
[312678681,1706145044786,-150.54,0.00042,2]
[312678682,1706145044795,-150.54,0.00042,2]
[312678683,1706145044805,-150.54,0.00042,2]
[312678684,1706145044814,-150.54,0.00042,2]
[312678685,1706145044823,-150.54,0.00042,2]
[312678686,1706145044832,-150.54,0.00042,2]
[312678687,1706145044842,-150.54,0.00042,2]
[312678688,1706145044851,-150.54,0.00042,2]
[312678689,1706145044860,-150.54,0.00042,2]
[312678690,1706145044870,-150.54,0.00042,2]
[312678691,1706145044879,-150.54,0.00042,2]
[312678692,1706145044888,-150.54,0.00042,2]
[312678693,1706145044896,-150.54,0.00042,2]
[312678694,1706145044905,-150.54,0.00042,2]
[312678695,1706145044915,-150.54,0.00042,2]
[312678696,1706145044924,-150.54,0.00042,2]
[312678697,1706145044933,-150.54,0.00042,2]
[312678698,1706145044942,-150.54,0.00042,2]
[312678699,1706145044950,-150.54,0.00042,2]
[312678700,1706145044959,-150.54,0.00042,2]
[312678701,1706145044969,-150.54,0.00042,2]
[312678702,1706145044978,-150.54,0.00042,2]
[312678703,1706145044987,-150.54,0.00042,2]
[312678704,1706145044996,-150.54,0.00042,2]
[312678705,1706145045006,-150.54,0.00042,2]
[312678706,1706145045015,-150.54,0.00042,2]
[312678707,1706145045025,-150.54,0.00042,2]
[312678708,1706145045034,-150.54,0.00042,2]
[312678709,1706145045043,-150.54,0.00042,2]
[312678710,1706145045057,-150.54,0.00042,2]
[312678711,1706145045069,-150.54,0.00042,2]
[312678712,1706145045081,-150.54,0.00042,2]
[312678713,1706145045091,-150.54,0.00042,2]
[312678714,1706145045102,-150.54,0.00042,2]
[312678715,1706145045111,-150.54,0.00042,2]
[312678716,1706145045120,-150.54,0.00042,2]
[312678717,1706145045132,-150.54,0.00042,2]
[312678718,1706145045141,-150.54,0.00042,2]
[312678719,1706145045150,-150.54,0.00042,2]
[312678720,1706145045159,-150.54,0.00042,2]
[312678721,1706145045169,-150.54,0.00042,2]
[312678722,1706145045180,-150.54,0.00042,2]
[312678723,1706145045190,-150.54,0.00042,2]
[312678724,1706145045199,-150.54,0.00042,2]
[312678725,1706145045209,-150.54,0.00042,2]
[312678726,1706145045220,-150.54,0.00042,2]
[312678727,1706145045229,-150.54,0.00042,2]
[312678728,1706145045240,-150.54,0.00042,2]
[312678729,1706145045249,-150.54,0.00042,2]
[312678730,1706145045258,-150.54,0.00042,2]
[312678731,1706145045268,-150.54,0.00042,2]
[312678732,1706145045278,-150.54,0.00042,2]
[312678733,1706145045289,-150.54,0.00042,2]
[312678734,1706145045300,-150.54,0.00042,2]
[312678735,1706145045311,-150.54,0.00042,2]
[312678736,1706145045320,-150.54,0.00042,2]
[312678737,1706145045330,-150.54,0.00042,2]
[312678738,1706145045339,-150.54,0.00042,2]
[312678739,1706145045348,-150.54,0.00042,2]
[312678740,1706145045357,-150.54,0.00042,2]
[312678741,1706145045366,-150.54,0.00042,2]
[312678742,1706145045376,-150.54,0.00042,2]
[312678743,1706145045385,-150.54,0.00042,2]
[312678744,1706145045394,-150.54,0.00042,2]
[312678745,1706145045404,-150.54,0.00042,2]
[312678746,1706145045413,-150.54,0.00042,2]
[312678747,1706145045422,-150.54,0.00042,2]
[312678748,1706145045431,-150.54,0.00042,2]
[312678749,1706145045441,-150.54,0.00042,2]
[312678750,1706145045450,-150.54,0.00042,2]
[312678751,1706145045459,-150.54,0.00042,2]
[312678752,1706145045468,-150.54,0.00042,2]
[312678753,1706145045478,-150.54,0.00042,2]
[312678754,1706145045487,-150.54,0.00042,2]
[312678755,1706145045496,-150.54,0.00042,2]
[312678756,1706145045505,-150.54,0.00042,2]
[312678757,1706145045520,-150.54,0.00042,2]
[312678758,1706145045530,-150.54,0.00042,2]
[312678759,1706145045540,-150.54,0.00042,2]
[312678760,1706145045550,-150.54,0.00042,2]
[312678761,1706145045560,-497.24,0.00042171,2]
[312678762,1706145045570,-175.0,0.00042195,2]
[312678763,1706145045579,-170.0,0.00042205,2]
[312678764,1706145045591,-1138.0,0.00042375,2]
[312678765,1706145045601,-150.0,0.00042394,2]
[312678766,1706145045611,-1033.0,0.000424,2]
[312678767,1706145045621,-151.81793571,0.00042475,16]
[312678768,1706145045631,-752.4855727,0.000425,10]
[312678769,1706145045641,-346.18,0.000428,4]
[312678770,1706145045651,-346.18,0.000428,4]
[312678771,1706145045662,-346.18,0.000428,4]
[312678772,1706145045672,-346.18,0.000428,4]
[312678773,1706145045682,-346.18,0.000428,4]
[312678774,1706145045691,-346.18,0.000428,4]
[312678775,1706145045701,-346.18,0.000428,4]
[312678776,1706145045710,-346.18,0.000428,4]
[312678777,1706145045720,-346.18,0.000428,4]
[312678778,1706145045729,-346.18,0.000428,4]
[312678779,1706145045738,-346.18,0.000428,4]
[312678780,1706145045748,-346.18,0.000428,4]
[312678781,1706145045757,-346.18,0.000428,4]
[312678782,1706145045767,-346.18,0.000428,4]
[312678783,1706145045776,-346.18,0.000428,4]
[312678784,1706145045785,-346.18,0.000428,4]
[312678785,1706145045795,-346.18,0.000428,4]
[312678786,1706145045804,-346.18,0.000428,4]
[312678787,1706145045813,-346.18,0.000428,4]
[312678788,1706145045823,-346.18,0.000428,4]
[312678789,1706145045833,-152.68,0.000428,4]
[312678790,1706145045843,-152.68,0.000428,4]
[312678791,1706145045852,-255.0,0.0004309,2]
[312678792,1706145045862,-436.0,0.0004309,2]
[312678793,1706145045871,-2363.02896817,0.00043095,15]
[312678794,1706145045881,-164.0,0.00043151,90]
[312678795,1706145045891,-161.0,0.00043151,90]
[312678796,1706145045901,-204.0,0.00043159,10]
[312678797,1706145045911,-3724.62806019,0.00043196,2]
[312678798,1706145045921,-500.0,0.00043198,2]
[312678799,1706145045930,-500.0,0.00043198,2]
[312678800,1706145045939,-500.0,0.00043198,2]
[312678801,1706145045948,-500.0,0.00043198,2]
[312678802,1706145045958,-500.0,0.00043198,2]
[312678803,1706145045967,-500.0,0.00043198,2]
[312678804,1706145045976,-500.0,0.00043198,2]
[312678805,1706145045986,-500.0,0.00043198,2]
[312678806,1706145045995,-500.0,0.00043198,2]
[312678807,1706145046004,-500.0,0.00043198,2]
[312678808,1706145046014,-500.0,0.00043198,2]
[312678809,1706145046023,-500.0,0.00043198,2]
[312678810,1706145046032,-500.0,0.00043198,2]
[312678811,1706145046044,-500.0,0.00043198,2]
[312678812,1706145046054,-500.0,0.00043198,2]
[312678813,1706145046063,-500.0,0.00043198,2]
[312678814,1706145046073,-500.0,0.00043198,2]
[312678815,1706145046083,-500.0,0.00043198,2]
[312678816,1706145046093,-500.0,0.00043198,2]
[312678817,1706145046102,-500.0,0.00043198,2]
[312678818,1706145046112,-500.0,0.00043198,2]
[312678819,1706145046121,-500.0,0.00043198,2]
[312678821,1706145046131,-500.0,0.00043198,2]
[312678822,1706145046140,-500.0,0.00043198,2]
[312678823,1706145046149,-500.0,0.00043198,2]
[312678824,1706145046159,-500.0,0.00043198,2]
[312678825,1706145046168,-500.0,0.00043198,2]
[312678826,1706145046178,-500.0,0.00043198,2]
[312678827,1706145046187,-500.0,0.00043198,2]
[312678828,1706145046197,-500.0,0.00043198,2]
[312678829,1706145046207,-500.0,0.00043198,2]
[312678830,1706145046216,-500.0,0.00043198,2]
[312678831,1706145046226,-500.0,0.00043198,2]
[312678832,1706145046235,-500.0,0.00043198,2]
[312678834,1706145046245,-500.0,0.00043198,2]
[312678836,1706145046254,-500.0,0.00043198,2]
[312678838,1706145046263,-500.0,0.00043199,2]
[312678840,1706145046272,-500.0,0.00043199,2]
[312678842,1706145046281,-500.0,0.00043199,2]
[312678849,1706145046382,-500.0,0.00043199,2]
[312678850,1706145046391,-500.0,0.00043199,2]
[312678851,1706145046401,-500.0,0.00043199,2]
[312678852,1706145046410,-500.0,0.00043199,2]
[312678853,1706145046418,-500.0,0.00043199,2]
[312678854,1706145046427,-500.0,0.00043199,2]
[312678855,1706145046436,-500.0,0.00043199,2]
[312678856,1706145046445,-500.0,0.00043199,2]
[312678857,1706145046455,-500.0,0.00043199,2]
[312678859,1706145046463,-500.0,0.00043199,2]
[312678861,1706145046472,-500.0,0.00043199,2]
[312678863,1706145046481,-500.0,0.00043199,2]
[312678865,1706145046492,-500.0,0.00043199,2]
[312678867,1706145046501,-500.0,0.00043199,2]
[312678869,1706145046511,-500.0,0.00043199,2]
[312678871,1706145046521,-500.0,0.00043199,2]
[312678873,1706145046533,-500.0,0.00043199,2]
[312678874,1706145046543,-500.0,0.00043199,2]
[312678875,1706145046552,-500.0,0.00043199,2]
[312678876,1706145046561,-500.0,0.00043199,2]
[312678877,1706145046572,-500.0,0.00043199,2]
[312678878,1706145046581,-500.0,0.00043199,2]
[312678879,1706145046590,-500.0,0.00043199,2]
[312678880,1706145046599,-500.0,0.00043199,2]
[312678881,1706145046609,-500.0,0.00043199,2]
[312678882,1706145046618,-500.0,0.00043199,2]
[312678883,1706145046627,-500.0,0.00043199,2]
[312678884,1706145046636,-500.0,0.00043199,2]
[312678886,1706145046647,-500.0,0.00043199,2]
[312678888,1706145046656,-500.0,0.00043199,2]
[312678890,1706145046666,-500.0,0.00043199,2]
[312678891,1706145046675,-500.0,0.00043199,2]
[312678892,1706145046686,-500.0,0.00043199,2]
[312678893,1706145046696,-500.0,0.00043199,2]
[312678894,1706145046706,-500.0,0.00043199,2]
[312678895,1706145046715,-500.0,0.00043199,2]
[312678896,1706145046724,-500.0,0.00043199,2]
[312678897,1706145046734,-500.0,0.00043199,2]
[312678898,1706145046745,-500.0,0.00043199,2]
[312678899,1706145046755,-500.0,0.00043199,2]
[312678900,1706145046765,-500.0,0.00043199,2]
[312678901,1706145046774,-500.0,0.00043199,2]
[312678902,1706145046784,-500.0,0.00043199,2]
[312678903,1706145046793,-500.0,0.00043199,2]
[312678904,1706145046802,-500.0,0.00043199,2]
[312678905,1706145046811,-500.0,0.00043199,2]
[312678906,1706145046820,-500.0,0.00043199,2]
[312678907,1706145046829,-500.0,0.00043199,2]
[312678908,1706145046838,-500.0,0.00043199,2]
[312678909,1706145046847,-500.0,0.00043199,2]
[312678910,1706145046856,-500.0,0.00043199,2]
[312678911,1706145046865,-500.0,0.00043199,2]
[312678912,1706145046874,-500.0,0.00043199,2]
[312678913,1706145046884,-500.0,0.00043199,2]
[312678914,1706145046893,-500.0,0.00043199,2]
[312678915,1706145046902,-500.0,0.00043199,2]
[312678916,1706145046912,-500.0,0.00043199,2]
[312678917,1706145046921,-500.0,0.00043199,2]
[312678918,1706145046931,-500.0,0.00043199,2]
[312678919,1706145046940,-500.0,0.00043199,2]
[312678920,1706145046951,-150.0,0.00043199,2]
[312678921,1706145046960,-500.0,0.00043199,2]
[312678922,1706145046968,-500.0,0.00043199,2]
[312678923,1706145046978,-500.0,0.00043199,2]
[312678924,1706145046987,-500.0,0.00043199,2]
[312678925,1706145046996,-500.0,0.00043199,2]
[312678926,1706145047009,-500.0,0.00043199,2]
[312678927,1706145047019,-500.0,0.00043199,2]
[312678928,1706145047028,-500.0,0.00043199,2]
[312678929,1706145047037,-500.0,0.00043199,2]
[312678930,1706145047047,-500.0,0.00043199,2]
[312678931,1706145047060,-500.0,0.00043199,2]
[312678932,1706145047069,-500.0,0.00043199,2]
[312678933,1706145047079,-500.0,0.00043199,2]
[312678934,1706145047087,-500.0,0.00043199,2]
[312678935,1706145047097,-500.0,0.00043199,2]
[312678936,1706145047106,-500.0,0.00043199,2]
[312678937,1706145047116,-500.0,0.00043199,2]
[312678938,1706145047125,-500.0,0.00043199,2]
[312678939,1706145047136,-500.0,0.00043199,2]
[312678940,1706145047147,-500.0,0.00043199,2]
[312678941,1706145047157,-500.0,0.00043199,2]
[312678942,1706145047166,-500.0,0.00043199,2]
[312678943,1706145047176,-500.0,0.00043199,2]
[312678944,1706145047185,-500.0,0.00043199,2]
[312678945,1706145047194,-500.0,0.00043199,2]
[312678946,1706145047203,-500.0,0.00043199,2]
[312678947,1706145047213,-500.0,0.00043199,2]
[312678948,1706145047223,-500.0,0.00043199,2]
[312678949,1706145047232,-500.0,0.00043199,2]
[312678950,1706145047242,-500.0,0.00043199,2]
[312678951,1706145047251,-500.0,0.00043199,2]
[312678952,1706145047261,-500.0,0.00043199,2]
[312678953,1706145047270,-500.0,0.00043199,2]
[312678954,1706145047280,-500.0,0.00043199,2]
[312678955,1706145047290,-500.0,0.00043199,2]
[312678956,1706145047300,-500.0,0.00043199,2]
[312678957,1706145047309,-500.0,0.00043199,2]
[312678958,1706145047318,-500.0,0.00043199,2]
[312678959,1706145047327,-500.0,0.00043199,2]
[312678960,1706145047337,-500.0,0.00043199,2]
[312678961,1706145047347,-500.0,0.00043199,2]
[312678962,1706145047356,-500.0,0.00043199,2]
[312678963,1706145047365,-500.0,0.00043199,2]
[312678964,1706145047374,-500.0,0.00043199,2]
[312678965,1706145047384,-500.0,0.00043199,2]
[312678966,1706145047393,-500.0,0.00043199,2]
[312678967,1706145047402,-500.0,0.00043199,2]
[312678968,1706145047413,-500.0,0.00043199,2]
[312678969,1706145047424,-500.0,0.00043199,2]
[312678970,1706145047435,-500.0,0.00043199,2]
[312678971,1706145047444,-500.0,0.00043199,2]
[312678972,1706145047453,-500.0,0.00043199,2]
[312678973,1706145047461,-500.0,0.00043199,2]
[312678974,1706145047471,-500.0,0.00043199,2]
[312678975,1706145047480,-500.0,0.00043199,2]
[312678976,1706145047489,-500.0,0.00043199,2]
[312678977,1706145047499,-500.0,0.00043199,2]
[312678978,1706145047508,-500.0,0.00043199,2]
[312678979,1706145047519,-500.0,0.00043199,2]
[312678980,1706145047531,-638.35926587,0.00043199,7]
[312678981,1706145047543,-1489.53765312,0.00043209,5]
[312678982,1706145047552,-750.0,0.00043257,14]
[312678983,1706145047562,-150.0,0.00043403,2]
[312678984,1706145047571,-168.68,0.000435,7]
[312678985,1706145047581,-170.0,0.00043677,2]
[312678986,1706145047590,-778.6594053,0.0004377,2]
[312678987,1706145047603,-644.802217,0.0004377,2]
[312678988,1706145047618,-5376.98042196,0.000438,30]
[312678989,1706145047627,-500.0,0.000438,2]
[312678990,1706145047636,-184.58603157,0.000438,2]
[312678991,1706145047645,-204.0,0.00043833,10]
[312678992,1706145047655,-443.0047398,0.0004397,2]
[312678993,1706145047664,-6730.13803492,0.00044,30]
[312678994,1706145047674,-200.0,0.000441,2]
[312678995,1706145047683,-151.81793571,0.00044107,22]
[312678996,1706145047693,-150.0,0.00044412,2]
[312678997,1706145047705,-497.24,0.00044434,2]
[312678998,1706145047714,-204.0,0.00044506,10]
[312678999,1706145047724,-1489.53765312,0.00044788,5]
[312679000,1706145047734,-510.0,0.0004479,2]
[312679001,1706145047743,-449.0,0.0004479,2]
[312679002,1706145047753,-5875.6848731,0.000448,30]
[312679003,1706145047762,-1033.0,0.0004484,4]
[312679004,1706145047772,-59445.88063114,0.0004487,2]
[312679005,1706145047781,-3812.60368664,0.000449,30]
[312679006,1706145047791,-150.0,0.00044936,2]
[312679007,1706145047801,-26884.73463826,0.00045,4]
[312679008,1706145047810,-576.92519857,0.00045,60]
[312679009,1706145047819,-207.0,0.00045,2]
[312679010,1706145047828,-7455.0,0.00045,2]
[312679011,1706145047837,-175.0,0.00045033,2]
[312679012,1706145047846,-170.0,0.00045149,2]
[312679013,1706145047856,-204.0,0.0004518,10]
[312679014,1706145047866,-300.0,0.00045301,2]
[312679015,1706145047877,-300.0,0.00045301,2]
[312679016,1706145047888,-300.0,0.00045301,2]
[312679017,1706145047898,-300.0,0.00045301,2]
[312679018,1706145047908,-300.0,0.00045301,2]
[312679019,1706145047919,-300.0,0.00045301,2]
[312679020,1706145047929,-300.0,0.00045301,2]
[312679021,1706145047938,-166.0,0.00045308,90]
[312679022,1706145047948,-330.13647902,0.00045318,4]
[312679023,1706145047960,-202.08717836,0.00045319,4]
[312679024,1706145047970,-300.0,0.00045319,2]
[312679025,1706145047979,-300.0,0.00045319,2]
[312679026,1706145047989,-160.0,0.0004532,2]
[312679027,1706145048001,-1205.65725877,0.0004532,4]
[312679028,1706145048011,-958.74812135,0.0004532,7]
[312679029,1706145048021,-2224.31586078,0.0004532,2]
[312679030,1706145048032,-2224.31586078,0.0004532,2]
[312679031,1706145048042,-2000.0,0.0004532,7]
[312679032,1706145048051,-200.0,0.0004532,7]
[312679033,1706145048061,-641.146266,0.0004532,14]
[312679034,1706145048073,-641.146266,0.0004532,14]
[312679035,1706145048083,-150.0,0.00045422,2]
[312679036,1706145048092,-150.0,0.00045589,10]
[312679037,1706145048101,-151.81793571,0.00045739,28]
[312679038,1706145048110,-2000.0,0.00045773,7]
[312679039,1706145048121,-200.0,0.00045773,7]
[312679040,1706145048130,-204.0,0.00045854,11]
[312679041,1706145048139,-200.0,0.00045987,35]
[312679042,1706145048149,-300.0,0.0004599,2]
[312679043,1706145048158,-151.0,0.00045991,14]
[312679044,1706145048167,-186.997498,0.00045991,14]
[312679045,1706145048177,-186.997498,0.00045991,14]
[312679046,1706145048186,-241.462668,0.00045991,14]
[312679047,1706145048195,-151.0,0.00045991,14]
[312679048,1706145048204,-479.70925,0.00045991,14]
[312679049,1706145048214,-479.70925,0.00045991,14]
[312679050,1706145048225,-155.379614,0.00045991,14]
[312679051,1706145048234,-151.0,0.00045991,14]
[312679052,1706145048244,-151.0,0.00045991,14]
[312679053,1706145048253,-151.0,0.00045991,14]
[312679054,1706145048262,-5758.78489045,0.00045991,20]
[312679055,1706145048271,-5580.10406678,0.00045991,20]
[312679056,1706145048280,-735.52768689,0.00045991,8]
[312679057,1706145048291,-6277.90576434,0.00045991,17]
[312679058,1706145048300,-19790.73560824,0.00045991,20]
[312679059,1706145048310,-989.53678041,0.00045991,10]
[312679060,1706145048319,-322.96904089,0.00046,29]
[312679061,1706145048329,-200.0,0.000462,2]
[312679062,1706145048338,-2000.0,0.00046231,7]
[312679063,1706145048348,-200.0,0.00046256,10]
[312679064,1706145048357,-1489.53765312,0.00046367,5]
[312679065,1706145048366,-150.0,0.00046431,2]
[312679066,1706145048376,-204.0,0.00046527,13]
[312679067,1706145048385,-187.5,0.00046575,120]
[312679068,1706145048394,-151.3,0.00046575,15]
[312679069,1706145048403,-497.24,0.00046698,2]
[312679070,1706145048413,-1000.0,0.000467,30]
[312679071,1706145048422,-402.31,0.0004673,2]
[312679072,1706145048431,-402.31,0.0004673,2]
[312679073,1706145048441,-402.31,0.0004673,2]
[312679074,1706145048451,-402.31,0.0004673,2]
[312679075,1706145048460,-396.01,0.0004673,2]
[312679076,1706145048469,-942.71,0.0004673,2]
[312679077,1706145048479,-150.0,0.00046976,2]
[312679078,1706145048489,-150.0,0.00046976,2]
[312679079,1706145048499,-150.0,0.00046976,2]
[312679080,1706145048509,-150.0,0.00046976,2]
[312679081,1706145048520,-150.0,0.00046976,2]
[312679082,1706145048530,-200.0,0.00046987,36]
[312679083,1706145048540,-300.0,0.00047,30]
[312679084,1706145048549,-237.94,0.00047004,2]
[312679085,1706145048559,-150.0,0.00047004,2]
[312679086,1706145048570,-150.0,0.00047004,2]
[312679087,1706145048579,-150.0,0.00047004,2]
[312679088,1706145048588,-150.0,0.00047004,2]
[312679089,1706145048599,-217.85,0.00047004,2]
[312679090,1706145048608,-419.04,0.00047004,2]
[312679091,1706145048618,-419.04,0.00047004,2]
[312679092,1706145048627,-2363.02896817,0.00047185,19]
[312679093,1706145048637,-204.0,0.00047201,15]
[312679094,1706145048646,-1033.0,0.0004728,6]
[312679095,1706145048657,-346.18,0.000473,5]
[312679096,1706145048667,-346.18,0.000473,5]
[312679097,1706145048676,-346.18,0.000473,5]
[312679098,1706145048686,-346.18,0.000473,5]
[312679099,1706145048695,-346.18,0.000473,5]
[312679100,1706145048704,-346.18,0.000473,5]
[312679101,1706145048713,-346.18,0.000473,5]
[312679102,1706145048723,-346.18,0.000473,5]
[312679103,1706145048732,-346.18,0.000473,5]
[312679104,1706145048744,-346.18,0.000473,5]
[312679105,1706145048753,-346.18,0.000473,5]
[312679106,1706145048762,-346.18,0.000473,5]
[312679107,1706145048771,-346.18,0.000473,5]
[312679108,1706145048780,-346.18,0.000473,5]
[312679109,1706145048790,-346.18,0.000473,5]
[312679110,1706145048799,-346.18,0.000473,5]
[312679111,1706145048808,-346.18,0.000473,5]
[312679112,1706145048818,-346.18,0.000473,5]
[312679113,1706145048827,-346.18,0.000473,5]
[312679114,1706145048836,-346.18,0.000473,5]
[312679115,1706145048845,-152.68,0.000473,5]
[312679116,1706145048855,-152.68,0.000473,5]
[312679117,1706145048864,-151.81793571,0.00047372,34]
[312679118,1706145048873,-151.0,0.000474,14]
[312679119,1706145048882,-151.0,0.000474,14]
[312679120,1706145048891,-294.128578,0.000474,14]